[Event "WYCC 2018 O16"]
[Site "Halkidiki"]
[Date "2018.10.23"]
[Round "5"]
[White "Semjonovs, Ilja"]
[Black "Katopodis, Dimitrios"]
[Result "1-0"]
[ECO "C41"]
[WhiteElo "2245"]
[BlackElo "2310"]
[Annotator "NA"]
[PlyCount "65"]
[EventDate "2018.10.20"]
[EventType "swiss"]
[EventCountry "GRE"]
[SourceTitle "playchess.com"]
[Source "ChessBase"]
[SourceQuality "1"]
[TimeControl "40/5400+30:1800+30"]

1. e4 {[%emt 0:01:48]} d6 {[%emt 0:00:02]} 2. d4 {[%emt 0:00:46]} Nf6 {[%emt 0:00:05]} 3. Nc3 {[%emt 0:00:11]} e5 {[%emt 0:00:21]} 4. Nf3 {[%emt 0:00:53]} Nbd7 {[%emt 0:00:08]} 5. Bc4 {[%emt 0:01:29]} Be7 {[%emt 0:00:05]} 6. O-O {[%emt 0:02:03]} O-O {[%emt 0:00:10]} 7. a4 {[%emt 0:02:30]} c6 {[%emt 0:00:19]} 8. a5 {[%emt 0:02:03]} Nxe4 {[%emt 0:05:09] C41: Philidor Defence} 9. Nxe4 {[%emt 0:02:16]} d5 {[%emt 0:00:08]} 10. a6 {[%emt 0:08:23]} dxe4 {[%emt 0:07:25]} 11. axb7 {[%emt 0:02:57]} Bxb7 {[%emt 0:00:31]} 12. Nxe5 {[%emt 0:00:30]} Nb6 $146 {[%emt 0:05:42]} ({Black should play Predecessor:} 12... c5 $14 13. Qh5 Nxe5 14. dxe5 Qd4 15. Ra4 g6 16. Qh3 Qxe5 {0-1 (32) Edouard,R (2659)-Bortnyk,O (2533) Wroclaw 2014}) 13. Bb3 {[%emt 0:03:17]} Nd5 {[%emt 0:02:21]} 14. f3 {[%emt 0:08:15]} exf3 {[%emt 0:04:53]} 15. Qxf3 {[%emt 0:05:42]} Bf6 {[%emt 0:05:49]} 16. c4 {[%emt 0:24:27]} Ne7 {[%emt 0:07:57]} 17. Be3 {[%emt 0:08:22]} Qb6 {[%emt 0:10:35]} 18. Bc2 {[%emt 0:04:43]} Bxe5 {[%emt 0:08:36]} 19. dxe5 {[%emt 0:00:43]} c5 {[%emt 0:00:46]} 20. Qf2 {[%emt 0:02:00]} Qe6 {[%emt 0:11:52]} 21. Bxc5 {[%emt 0:01:19]} Rfc8 {[%emt 0:02:43]} 22. b3 {[%emt 0:08:02]} a5 {[%emt 0:06:01]} 23. Rad1 {[%emt 0:02:53]} Rd8 {[%emt 0:01:04]} 24. Rd6 {[%emt 0:00:47]} Rxd6 {[%emt 0:00:54]} 25. exd6 {[%emt 0:00:16]} Ng6 {[%emt 0:00:23]} 26. Bf5 $18 {[%emt 0:01:51]} Qf6 {[%emt 0:00:36]} 27. d7 {[%emt 0:00:58]} Ne5 {[%emt 0:03:55]} 28. Bb6 {[%emt 0:03:41]} g6 {[%emt 0:02:10]} 29. Bh3 {[%emt 0:00:16]} Qe7 {[%emt 0:01:13]} 30. Qf6 {[%emt 0:00:47]} Qxf6 {[%emt 0:02:23]} 31. Rxf6 {[%emt 0:00:04]} Nc6 {[%emt 0:00:38]} 32. Rxc6 {[%emt 0:00:10]} Bxc6 {[%emt 0:00:28]} 33. d8=Q+ {[%emt 0:00:06]} 1-0

[Event "WYCC 2018 O16"]
[Site "Halkidiki"]
[Date "2018.10.23"]
[Round "5"]
[White "Juksta, Karolis"]
[Black "Ibrahimli, Murad"]
[Result "0-1"]
[ECO "E45"]
[WhiteElo "2234"]
[BlackElo "2379"]
[Annotator "NA"]
[PlyCount "70"]
[EventDate "2018.10.20"]
[EventType "swiss"]
[EventCountry "GRE"]
[SourceTitle "playchess.com"]
[Source "ChessBase"]
[SourceQuality "1"]
[TimeControl "40/5400+30:1800+30"]

1. d4 {[%emt 0:00:00] Wells,P} Nf6 {[%emt 0:00:02]} 2. c4 {[%emt 0:00:00]} e6 {[%emt 0:00:47]} 3. Nc3 {[%emt 0:00:00]} Bb4 {[%emt 0:00:09]} 4. e3 {[%emt 0:00:00]} b6 {[%emt 0:00:43]} 5. Nge2 {[%emt 0:00:00]} Ba6 {[%emt 0:00:44]} 6. Ng3 {[%emt 0:00:11]} Bxc3+ {[%emt 0:00:52]} 7. bxc3 {[%emt 0:00:06]} d5 {[%emt 0:00:05]} 8. Ba3 {[%emt 0:01:08]} dxc4 {[%emt 0:11:07] E45: Nimzo-Indian: Rubinstein: 4...b6 5 Ne2 Ba6} 9. e4 {[%emt 0:00:14]} Qd7 {[%emt 0:04:41]} 10. Be2 {[%emt 0:00:19]} Nc6 {[%emt 0:01:51]} 11. Qc2 {[%emt 0:08:44]} O-O-O {[%emt 0:14:24]} 12. O-O {[%emt 0:00:25]} h5 {[%emt 0:02:10]} 13. Rfb1 $146 {[%emt 0:12:54]} ({Predecessor:} 13. Rfd1 Ne7 14. Bc1 Rdg8 15. Nf1 g5 16. Ne3 {1-0 (39) Graf,A (2623)-Cvek,R (2430) Leipzig 2002 CBM 089 [Wells,P]}) 13... h4 {[%emt 0:13:22]} 14. Nf1 {[%emt 0:00:11]} Nh5 {[%emt 0:01:55]} 15. Ne3 {[%emt 0:04:20]} Nf4 {[%emt 0:00:35]} 16. Bxc4 {[%emt 0:00:34]} Bxc4 {[%emt 0:00:57]} 17. Nxc4 {[%emt 0:00:05]} f5 {[%emt 0:05:49]} 18. Bc1 {[%emt 0:31:22]} g5 {[%emt 0:00:55]} 19. f3 $11 {[%emt 0:01:22]} (19. a4 $1 $14) 19... fxe4 {[%emt 0:09:11]} 20. fxe4 {[%emt 0:00:05]} Qh7 {[%emt 0:06:31]} 21. h3 {[%emt 0:10:56]} e5 {[%emt 0:02:33]} 22. Bxf4 {[%emt 0:12:58]} gxf4 {[%emt 0:00:13]} 23. Nxe5 {[%emt 0:04:55]} Nxe5 {[%emt 0:00:11]} 24. dxe5 {[%emt 0:00:01]} Qe7 {[%emt 0:02:01]} 25. a4 {[%emt 0:01:29]} f3 {[%emt 0:03:32]} 26. Rf1 {[%emt 0:05:32]} fxg2 {[%emt 0:02:54]} 27. Rf3 {[%emt 0:03:10]} Qxe5 {[%emt 0:01:31]} 28. a5 {[%emt 0:00:29]} Rhf8 {[%emt 0:07:08]} 29. Qf2 {[%emt 0:01:45]} Rxf3 {[%emt 0:01:39]} 30. Qxf3 {[%emt 0:00:01]} Rg8 {[%emt 0:02:23]} 31. axb6 {[%emt 0:00:46]} Qc5+ {[%emt 0:01:13]} 32. Qf2 {[%emt 0:00:02]} Qxf2+ {[%emt 0:00:18]} 33. Kxf2 {[%emt 0:00:02]} g1=Q+ {[%emt 0:00:18]} 34. Rxg1 {[%emt 0:00:07]} Rxg1 {[%emt 0:00:03]} 35. Kxg1 {[%emt 0:00:26]} a5 {[%emt 0:00:14]} 0-1

[Event "WYCC 2018 O16"]
[Site "Halkidiki"]
[Date "2018.10.23"]
[Round "5"]
[White "Wang, Yanbin"]
[Black "Baenziger, Fabian"]
[Result "1/2-1/2"]
[ECO "A10"]
[WhiteElo "2220"]
[BlackElo "2355"]
[Annotator "NA"]
[PlyCount "81"]
[EventDate "2018.10.20"]
[EventType "swiss"]
[EventCountry "GRE"]
[SourceTitle "playchess.com"]
[Source "ChessBase"]
[SourceQuality "1"]
[TimeControl "40/5400+30:1800+30"]

1. c4 {[%emt 0:00:00]} g6 {[%emt 0:00:00]} 2. Nc3 {[%emt 0:00:00]} Bg7 {[%emt 0:00:01]} 3. g3 {[%emt 0:00:00]} Nf6 {[%emt 0:00:13]} 4. Bg2 {[%emt 0:00:00]} O-O {[%emt 0:00:22]} 5. d4 {[%emt 0:00:10]} c5 {[%emt 0:04:37]} 6. d5 {[%emt 0:01:15]} d6 {[%emt 0:00:18]} 7. Nf3 {[%emt 0:01:12]} e6 {[%emt 0:00:40]} 8. dxe6 {[%emt 0:07:35]} Bxe6 {[%emt 0:04:15]} 9. Ng5 {[%emt 0:00:34]} Nc6 {[%emt 0:03:12]} 10. Nxe6 {[%emt 0:00:09]} fxe6 {[%emt 0:00:01]} 11. O-O {[%emt 0:01:14]} Qe7 {[%emt 0:02:21]} 12. Bf4 {[%emt 0:01:11]} Rad8 $14 {[%emt 0:01:51] LiveBook: 7 Games} 13. Qd2 {[%emt 0:05:06]} Kh8 {[%emt 0:16:52]} 14. Bxc6 bxc6 {[%emt 0:00:06]} 15. Rad1 {[%emt 0:34:04]} d5 {[%emt 0:06:41]} 16. Bg5 {[%emt 0:01:42]} Qc7 {[%emt 0:09:13]} 17. Qd3 {[%emt 0:16:45]} Qe5 {[%emt 0:03:14]} 18. Bxf6 {[%emt 0:08:11]} Qxf6 {[%emt 0:02:35]} 19. e4 {[%emt 0:03:54]} Qd4 {[%emt 0:08:13]} 20. cxd5 {[%emt 0:02:14]} Qxd3 {[%emt 0:00:57]} 21. Rxd3 {[%emt 0:00:21]} c4 {[%emt 0:00:35]} 22. Rd2 {[%emt 0:00:46]} cxd5 {[%emt 0:01:32]} 23. exd5 {[%emt 0:00:18]} exd5 {[%emt 0:00:57]} 24. Nxd5 {[%emt 0:06:16]} Bxb2 {[%emt 0:00:05]} 25. Rxb2 {[%emt 0:00:07]} Rxd5 {[%emt 0:00:02]} 26. Rc1 {[%emt 0:00:14]} Rc8 {[%emt 0:00:15]} 27. Rc3 {[%emt 0:00:27]} Rd3 {[%emt 0:01:23]} 28. Rxd3 {[%emt 0:01:38]} cxd3 {[%emt 0:00:04]} 29. Rd2 {[%emt 0:00:04]} Rc2 {[%emt 0:00:10]} 30. Rxd3 {[%emt 0:00:03]} Rxa2 {[%emt 0:00:04]} 31. Rd7 {[%emt 0:00:03]} Kg8 {[%emt 0:00:24]} 32. Kg2 {[%emt 0:00:08]} h5 {[%emt 0:01:54]} 33. Kf3 {[%emt 0:01:10]} Kf8 {[%emt 0:01:37]} 34. h4 {[%emt 0:02:22]} Kg8 {[%emt 0:00:32]} 35. Ke4 {[%emt 0:01:36]} Rxf2 {[%emt 0:00:05]} 36. Rxa7 {[%emt 0:00:03]} Rf5 {[%emt 0:00:25]} 37. Rd7 {[%emt 0:00:17]} Ra5 {[%emt 0:00:16]} 38. Kf4 {[%emt 0:00:23]} Rf5+ {[%emt 0:00:05]} 39. Ke4 {[%emt 0:00:03]} Ra5 {[%emt 0:00:02]} 40. Kf4 {[%emt 0:00:00]} Rf5+ {[%emt 0:00:00]} 41. Ke4 {[%emt 0:00:08]} 1/2-1/2

[Event "WYCC 2018 O16"]
[Site "Halkidiki"]
[Date "2018.10.23"]
[Round "5"]
[White "Stefan, Victor"]
[Black "Milosevic, Milos"]
[Result "0-1"]
[ECO "E91"]
[WhiteElo "1998"]
[BlackElo "2306"]
[Annotator "NA"]
[PlyCount "132"]
[EventDate "2018.10.20"]
[EventType "swiss"]
[EventCountry "GRE"]
[SourceTitle "playchess.com"]
[Source "ChessBase"]
[SourceQuality "1"]
[TimeControl "40/5400+30:1800+30"]

1. d4 {[%emt 0:02:53]} Nf6 {[%emt 0:00:05]} 2. c4 {[%emt 0:01:05]} d6 {[%emt 0:06:28]} 3. Nc3 {[%emt 0:00:24]} g6 {[%emt 0:00:41]} 4. e4 {[%emt 0:00:51]} Bg7 {[%emt 0:00:02]} 5. Nf3 {[%emt 0:00:00]} O-O {[%emt 0:00:08]} 6. Be2 {[%emt 0:00:12]} Na6 {[%emt 0:01:46]} 7. O-O {[%emt 0:08:29]} e5 {[%emt 0:00:07]} 8. Be3 {[%emt 0:02:03] LiveBook: 2869 Games} exd4 {[%emt 0:01:23]} 9. Nxd4 {[%emt 0:00:18]} Re8 {[%emt 0:00:07]} 10. f3 {[%emt 0:02:27]} c6 {[%emt 0:00:12]} 11. Nc2 {[%emt 0:11:49]} (11. Qd2 $16) 11... Nc7 {[%emt 0:07:55] E94: King's Indian: Classical: 6 Be2 e5 7 0-0: Various Black 7th moves} (11... d5 12. cxd5 cxd5 13. exd5 Nb4 14. Bf2 Nbxd5 15. Nxd5 Qxd5 16. Qxd5 Nxd5 17. Bb5 Rd8 18. Bh4 Bf6 19. Bxf6 Nxf6 20. Rfd1 Bd7 21. Bxd7 Rxd7 22. Rxd7 Nxd7 {½-½ (31) Lenic,L (2637)-Markus,R (2625) Ljubljana 2012}) 12. Qd2 {[%emt 0:15:02]} d5 {[%emt 0:00:40]} 13. exd5 {[%emt 0:00:38]} cxd5 {[%emt 0:00:13]} 14. c5 {[%emt 0:01:16]} Bf5 $146 {[%emt 0:42:22]} ({Predecessor:} 14... Bd7 15. Rad1 Bc6 16. b4 Qd7 17. Nd4 a6 18. Rfe1 Re7 19. Bf2 {1-0 (35) Fontaine,Q (2238)-Le Quang,K (2264) Charleroi 2016}) 15. Nd4 {[%emt 0:01:40]} Bd7 {[%emt 0:00:55]} 16. Rac1 {[%emt 0:05:53]} Nh5 {[%emt 0:05:40]} 17. Rfd1 {[%emt 0:14:21]} Bf6 {[%emt 0:25:14]} 18. f4 {[%emt 0:02:43]} Ng7 {[%emt 0:00:02]} 19. Bf3 {[%emt 0:00:25]} Bf5 {[%emt 0:01:14]} 20. g4 {[%emt 0:12:32]} Be4 {[%emt 0:00:15]} 21. Qg2 {[%emt 0:00:24]} Bxf3 {[%emt 0:00:46]} 22. Qxf3 {[%emt 0:00:01]} h5 {[%emt 0:01:38]} 23. h3 {[%emt 0:00:18]} Qd7 {[%emt 0:00:05]} 24. Bf2 {[%emt 0:01:07]} Rad8 {[%emt 0:00:05]} 25. b4 {[%emt 0:00:33]} b6 {[%emt 0:02:17]} 26. c6 {[%emt 0:03:10]} Qe7 {[%emt 0:01:01]} 27. a3 {[%emt 0:03:38]} hxg4 {[%emt 0:00:16]} 28. hxg4 {[%emt 0:00:02]} Nge6 {[%emt 0:00:18]} 29. Kg2 {[%emt 0:06:02]} Bxd4 {[%emt 0:00:55]} 30. Bxd4 {[%emt 0:01:28]} Nxd4 {[%emt 0:00:04]} 31. Rxd4 {[%emt 0:00:10]} Qf6 {[%emt 0:00:06]} 32. Rdd1 {[%emt 0:02:13]} Ne6 {[%emt 0:00:36]} 33. Ne2 {[%emt 0:00:55]} Qb2 {[%emt 0:00:12]} 34. Kg3 {[%emt 0:01:02]} Rc8 {[%emt 0:02:37]} 35. Rb1 {[%emt 0:00:52]} Qf6 {[%emt 0:00:17]} 36. b5 {[%emt 0:00:24]} Nc5 {[%emt 0:00:31]} 37. Rxd5 {[%emt 0:00:35]} Ne4+ {[%emt 0:00:33]} 38. Kg2 {[%emt 0:00:14]} Kg7 {[%emt 0:00:37]} 39. Rbd1 {[%emt 0:00:43]} Qb2 {[%emt 0:00:18]} 40. R5d4 {[%emt 0:00:00]} Nf6 {[%emt 0:00:00]} 41. R1d2 {[%emt 0:04:03]} Qxb5 {[%emt 0:01:44]} 42. Rc2 {[%emt 0:18:03]} Rc7 {[%emt 0:05:09]} 43. Ng3 {[%emt 0:02:20]} Qb1 {[%emt 0:07:35]} 44. Qc3 {[%emt 0:02:06]} Re3 {[%emt 0:00:32]} 45. Qxe3 {[%emt 0:02:59]} Qxc2+ {[%emt 0:00:03]} 46. Kh3 {[%emt 0:01:58]} Rc8 {[%emt 0:01:53]} 47. Ne2 {[%emt 0:02:24]} Qxc6 {[%emt 0:00:34]} 48. g5 {[%emt 0:00:42]} Qh1+ {[%emt 0:00:57]} 49. Kg3 {[%emt 0:00:08]} Nh5+ {[%emt 0:00:11]} 50. Kf2 {[%emt 0:00:26]} Qh2+ $17 {[%emt 0:00:54]} 51. Ke1 {[%emt 0:00:18]} Qh1+ {[%emt 0:00:34]} 52. Kf2 {[%emt 0:00:29]} Qh4+ {[%emt 0:09:42]} 53. Kf1 {[%emt 0:00:30]} Qg4 {[%emt 0:00:41]} 54. Kf2 {[%emt 0:00:47]} Kf8 {[%emt 0:01:13]} 55. Qe5 {[%emt 0:00:39]} Ng7 {[%emt 0:00:53]} 56. Re4 {[%emt 0:00:40]} Kg8 {[%emt 0:00:16]} 57. Qd5 {[%emt 0:00:35]} Nf5 {[%emt 0:01:40]} 58. Qb5 {[%emt 0:00:27]} Nd6 {[%emt 0:00:19]} 59. Qe5 {[%emt 0:00:26]} Qh4+ {[%emt 0:00:27]} 60. Ke3 {[%emt 0:00:16]} Qh3+ {[%emt 0:00:43]} 61. Kf2 {[%emt 0:00:20]} Qh2+ {[%emt 0:00:11]} 62. Ke3 {[%emt 0:00:14]} Nxe4 {[%emt 0:00:36]} 63. Qxe4 {[%emt 0:00:07]} Qh3+ {[%emt 0:00:52]} 64. Kf2 {[%emt 0:00:17]} Qxa3 {[%emt 0:00:04]} 65. Nd4 {[%emt 0:00:49]} Qb4 {[%emt 0:00:49]} 66. Kg3 {[%emt 0:00:48]} Rd8 {[%emt 0:00:12]} 0-1

[Event "WYCC 2018 O16"]
[Site "Halkidiki"]
[Date "2018.10.24"]
[Round "6"]
[White "Kosakowski, Jakub"]
[Black "Sankalp Gupta"]
[Result "1/2-1/2"]
[ECO "C06"]
[WhiteElo "2413"]
[BlackElo "2352"]
[Annotator "ChessBase"]
[PlyCount "71"]
[EventDate "2018.10.20"]
[EventType "swiss"]
[EventCountry "GRE"]
[SourceTitle "playchess.com"]
[Source "ChessBase"]
[SourceQuality "1"]
[TimeControl "40/5400+30:1800+30"]

1. e4 {[%emt 0:00:00]} e6 {[%emt 0:00:00]} 2. d4 {[%emt 0:00:29]} d5 {[%emt 0:00:00]} 3. Nd2 {[%emt 0:00:53]} Nf6 {[%emt 0:00:00]} 4. e5 {[%emt 0:00:17]} Nfd7 {[%emt 0:00:00]} 5. Bd3 {[%emt 0:01:00]} c5 {[%emt 0:00:00]} 6. c3 {[%emt 0:00:22]} Nc6 {[%emt 0:00:00]} 7. Ne2 {[%emt 0:00:44]} cxd4 {[%emt 0:00:00]} 8. cxd4 {[%emt 0:00:10]} f6 {[%emt 0:00:00]} 9. exf6 {[%emt 0:00:35]} Nxf6 {[%emt 0:00:00]} 10. Nf3 {[%emt 0:01:51]} Bd6 {[%emt 0:00:20]} 11. O-O {[%emt 0:00:27]} O-O {[%emt 0:00:03]} 12. Bf4 {[%emt 0:02:30]} Nh5 {[%emt 0:00:16]} 13. Bxd6 {[%emt 0:18:47]} Qxd6 {[%emt 0:00:04]} 14. Ng3 {[%emt 0:11:35]} Nf4 {[%emt 0:02:24]} 15. Re1 {[%emt 0:01:34]} Bd7 {[%emt 0:00:35]} 16. Rc1 {[%emt 0:06:53]} Rae8 {[%emt 0:01:13]} 17. Bf1 e5 {[%emt 0:02:46]} 18. dxe5 {[%emt 0:20:47]} Nxe5 {[%emt 0:00:10]} 19. Nxe5 {[%emt 0:00:12]} Rxe5 {[%emt 0:00:08]} 20. Qd4 {[%emt 0:00:13]} Rxe1 {[%emt 0:02:42]} 21. Rxe1 {[%emt 0:00:05]} a6 {[%emt 0:02:25]} 22. Re3 {[%emt 0:00:08]} Bc6 {[%emt 0:08:53]} 23. Ne4 {[%emt 0:04:10]} Qd7 {[%emt 0:13:14]} 24. Nc5 {[%emt 0:01:07]} Qg4 {[%emt 0:04:30]} 25. Nb3 {[%emt 0:02:24]} Rf7 {[%emt 0:05:05]} 26. Qe5 {[%emt 0:05:45]} Bb5 {[%emt 0:04:35]} 27. Rg3 {[%emt 0:17:03]} Qd1 {[%emt 0:07:41]} 28. Rxg7+ {[%emt 0:00:18]} Rxg7 {[%emt 0:00:03]} 29. Qb8+ {[%emt 0:00:06]} Kf7 {[%emt 0:00:06]} 30. Qxf4+ {[%emt 0:00:02]} Kg6 {[%emt 0:04:11]} 31. Qg3+ {[%emt 0:00:01]} Kf5 {[%emt 0:07:28]} 32. Qh3+ {[%emt 0:00:03]} Kf6 {[%emt 0:03:45]} 33. Qh6+ {[%emt 0:02:41]} Kf7 {[%emt 0:14:49]} 34. Qf4+ {[%emt 0:00:02]} Kg6 {[%emt 0:01:35]} 35. Qg3+ {[%emt 0:00:02]} Kh6 {[%emt 0:01:37]} 36. Qh4+ {[%emt 0:00:37]} 1/2-1/2

[Event "WYCC 2018 O16"]
[Site "Halkidiki"]
[Date "2018.10.24"]
[Round "6"]
[White "Gatineau, Yovann"]
[Black "Lund, Gunnar"]
[Result "1/2-1/2"]
[ECO "A41"]
[WhiteElo "2376"]
[BlackElo "2227"]
[Annotator "NA"]
[PlyCount "82"]
[EventDate "2018.10.20"]
[EventType "swiss"]
[EventCountry "GRE"]
[SourceTitle "playchess.com"]
[Source "ChessBase"]
[SourceQuality "1"]
[TimeControl "40/5400+30:1800+30"]

1. d4 {[%emt 0:02:21]} d6 {[%emt 0:00:00]} 2. Nf3 {[%emt 0:00:29]} Bg4 {[%emt 0:00:00]} 3. g3 {[%emt 0:02:05]} Nd7 {[%emt 0:00:18]} 4. Bg2 {[%emt 0:00:09]} e5 {[%emt 0:00:36]} 5. O-O {[%emt 0:02:18]} Ngf6 {[%emt 0:00:34]} 6. c4 {[%emt 0:01:15]} Be7 {[%emt 0:00:26]} 7. Nc3 {[%emt 0:00:47]} c6 {[%emt 0:00:34]} 8. h3 {[%emt 0:05:11]} Bxf3 {[%emt 0:08:11]} 9. exf3 {[%emt 0:02:43] A53: Old Indian Defence without Nf3} O-O {[%emt 0:00:54] LiveBook: 5 Games} 10. f4 {[%emt 0:00:46]} exd4 {[%emt 0:02:37]} (10... Re8 11. d5 Qc7 12. dxc6 bxc6 13. Be3 a5 14. b3 exf4 15. Bxf4 Nc5 {1-0 (38) Wojtaszek,R (2746)-Bezold,M (2502) Germany 2016}) 11. Qxd4 {[%emt 0:00:06]} Re8 {[%emt 0:00:31]} 12. b3 $146 {[%emt 0:00:45]} ({Predecessor:} 12. Be3 Bf8 13. Rad1 a5 14. f5 a4 15. g4 Nc5 16. Rfe1 Nfd7 {0-1 (37) Brodowski,P (2453)-Krasenkow,M (2610) Poland 2016}) 12... Bf8 {[%emt 0:10:57]} 13. Bb2 {[%emt 0:00:17]} a5 {[%emt 0:01:07]} 14. Rae1 {[%emt 0:07:53]} Nc5 {[%emt 0:04:40]} 15. Rxe8 {[%emt 0:03:05]} Qxe8 {[%emt 0:00:19]} 16. Nd1 {[%emt 0:00:25]} d5 {[%emt 0:19:52]} 17. cxd5 {[%emt 0:09:20]} Nxd5 {[%emt 0:07:19]} 18. Bxd5 {[%emt 0:01:21]} cxd5 {[%emt 0:00:07]} 19. Ne3 $16 {[%emt 0:00:19]} Rd8 {[%emt 0:03:20]} 20. f5 {[%emt 0:09:08]} Kh8 {[%emt 0:10:49]} 21. Rd1 {[%emt 0:02:39]} Ne4 {[%emt 0:01:15]} 22. Rc1 {[%emt 0:05:20]} f6 {[%emt 0:06:20]} 23. Nxd5 {[%emt 0:05:52]} Bc5 {[%emt 0:09:50]} 24. Rxc5 {[%emt 0:01:14]} Nxc5 {[%emt 0:00:03]} 25. Qxc5 {[%emt 0:00:18]} Qe1+ {[%emt 0:00:09]} 26. Kh2 {[%emt 0:00:16]} Qd2 {[%emt 0:02:02]} 27. Bd4 {[%emt 0:01:31]} h6 {[%emt 0:00:48]} 28. a4 {[%emt 0:05:08]} b6 {[%emt 0:00:42]} 29. Qc4 {[%emt 0:01:07]} Qd1 {[%emt 0:03:26]} 30. Kg2 {[%emt 0:02:12]} Qd2 {[%emt 0:00:13]} 31. Kg1 {[%emt 0:10:11]} Qd1+ {[%emt 0:00:07]} 32. Kh2 {[%emt 0:00:11]} Qd2 {[%emt 0:00:20]} 33. g4 {[%emt 0:01:23]} Qd1 {[%emt 0:00:32]} 34. Kg3 {[%emt 0:01:49]} Qd2 {[%emt 0:03:19]} 35. f4 {[%emt 0:00:39]} Qd1 {[%emt 0:01:00]} 36. g5 {[%emt 0:00:54]} hxg5 {[%emt 0:01:04]} 37. fxg5 {[%emt 0:00:04]} Qe1+ {[%emt 0:00:28]} 38. Kh2 {[%emt 0:03:41]} Qd2+ {[%emt 0:00:24]} 39. Kh1 {[%emt 0:01:04]} Qd1+ {[%emt 0:00:18]} 40. Kh2 {[%emt 0:00:00]} Qd2+ {[%emt 0:00:00]} 41. Kh1 {[%emt 0:00:46]} Qd1+ {[%emt 0:02:48]} 1/2-1/2

[Event "WYCC 2018 O16"]
[Site "Halkidiki"]
[Date "2018.10.24"]
[Round "6"]
[White "Stoleriu, George"]
[Black "O'Donnell, Tom"]
[Result "1-0"]
[ECO "B90"]
[WhiteElo "2362"]
[BlackElo "2332"]
[Annotator "NA"]
[PlyCount "109"]
[EventDate "2018.10.20"]
[EventType "swiss"]
[EventCountry "GRE"]
[SourceTitle "playchess.com"]
[Source "ChessBase"]
[SourceQuality "1"]
[TimeControl "40/5400+30:1800+30"]

1. e4 {[%emt 0:00:00]} c5 {[%emt 0:00:00]} 2. Nf3 {[%emt 0:00:00]} d6 {[%emt 0:00:00]} 3. d4 {[%emt 0:00:00]} cxd4 {[%emt 0:00:00]} 4. Nxd4 {[%emt 0:00:00]} Nf6 {[%emt 0:00:00]} 5. Nc3 {[%emt 0:00:00]} a6 {[%emt 0:00:00]} 6. a4 {[%emt 0:00:00]} Nc6 {[%emt 0:06:29]} 7. Nxc6 {[%emt 0:13:08] B90: Sicilian Najdorf: Unusual White 6th moves, 6 Be3 Ng4 and 6 Be3 e5} (7. Be2 e6 8. O-O Be7 9. Be3 O-O 10. f4 Qc7 11. Kh1 Nxd4 12. Bxd4 e5 13. Be3 exf4 14. Bxf4 Be6 15. Qd3 Nd7 16. Qg3 Ne5 17. Be3 Rfe8 18. Bd4 Bf8 19. Qf2 Rac8 20. Rfd1 g6 21. h3 Bg7 22. Bb6 Qe7 23. Bd4 Rc6 24. a5 {0-1 (49) Movsesian,S (2667)-Navara,D (2732) Czech Republic 2018}) 7... bxc6 {[%emt 0:00:12]} 8. a5 {[%emt 0:00:02]} d5 {[%emt 0:08:06]} 9. Bd3 {[%emt 0:05:13]} e5 {[%emt 0:03:38] LiveBook: 3 Games} 10. O-O {[%emt 0:07:03]} Bd6 {[%emt 0:13:14]} 11. Bg5 {[%emt 0:11:09]} Bb7 {[%emt 0:03:40]} 12. Qf3 {[%emt 0:07:58]} h6 {[%emt 0:06:06]} 13. Bxf6 $146 {[%emt 0:12:09]} ({Predecessor:} 13. Bh4 g5 14. Bg3 d4 {½-½ (35) Onischuk,V (2594)-Antal,T (2357) Zalakaros 2014}) 13... Qxf6 {[%emt 0:00:16]} 14. Qxf6 {[%emt 0:00:04]} gxf6 {[%emt 0:00:08]} 15. Rfd1 {[%emt 0:01:47]} O-O-O {[%emt 0:06:44]} 16. exd5 {[%emt 0:12:30]} cxd5 {[%emt 0:01:06]} 17. Bf5+ {[%emt 0:00:05]} Kb8 {[%emt 0:02:30]} 18. Nxd5 {[%emt 0:00:21]} Bxd5 {[%emt 0:01:01]} 19. Rxd5 {[%emt 0:00:33]} Bb4 {[%emt 0:00:59]} 20. Bd7 {[%emt 0:04:41]} Rhe8 {[%emt 0:09:06]} 21. Rad1 {[%emt 0:10:22]} Re7 {[%emt 0:00:32]} 22. Bf5 {[%emt 0:00:16]} Rxd5 {[%emt 0:02:22]} 23. Rxd5 {[%emt 0:00:01]} Rb7 {[%emt 0:05:27]} 24. Kf1 {[%emt 0:06:53]} Be7 {[%emt 0:01:44]} 25. b3 $18 {[%emt 0:00:24]} Rb5 {[%emt 0:03:07]} 26. Rd7 {[%emt 0:00:32]} Rb7 {[%emt 0:00:08]} 27. Rxb7+ {[%emt 0:00:41]} Kxb7 {[%emt 0:00:02]} 28. Be4+ {[%emt 0:00:50]} Kc7 {[%emt 0:00:25]} 29. c3 {[%emt 0:00:04]} Ba3 {[%emt 0:09:04]} 30. Ke2 {[%emt 0:00:06]} Bc1 {[%emt 0:01:31]} 31. Kd1 {[%emt 0:00:52]} Ba3 {[%emt 0:01:47]} 32. b4 {[%emt 0:00:23]} Bb2 {[%emt 0:00:06]} 33. Kc2 {[%emt 0:00:04]} Ba1 {[%emt 0:00:05]} 34. Bd5 {[%emt 0:02:00]} Kb8 {[%emt 0:00:13]} 35. Bxf7 {[%emt 0:00:08]} Kc7 {[%emt 0:00:06]} 36. Bc4 {[%emt 0:00:05]} Kb7 {[%emt 0:00:05]} 37. Bd3 {[%emt 0:00:04]} Ka7 {[%emt 0:00:15]} 38. f3 {[%emt 0:00:30]} Kb7 {[%emt 0:00:06]} 39. Kb3 {[%emt 0:00:59]} Ka7 {[%emt 0:00:08]} 40. c4 {[%emt 0:00:00]} Bd4 {[%emt 0:00:00]} 41. c5 {[%emt 0:04:52]} Kb7 {[%emt 0:02:49]} 42. Kc4 {[%emt 0:00:39]} Bf2 {[%emt 0:00:14]} 43. b5 {[%emt 0:00:46]} axb5+ {[%emt 0:02:45]} 44. Kxb5 {[%emt 0:00:06]} h5 {[%emt 0:00:18]} 45. a6+ {[%emt 0:00:40]} Ka7 {[%emt 0:00:31]} 46. Kc6 {[%emt 0:00:05]} h4 {[%emt 0:00:05]} 47. Kd6 {[%emt 0:00:11]} h3 {[%emt 0:00:33]} 48. gxh3 {[%emt 0:00:04]} Kb8 {[%emt 0:00:54]} 49. c6 {[%emt 0:00:22]} Bb6 {[%emt 0:00:06]} 50. Kd7 {[%emt 0:00:31]} f5 {[%emt 0:00:57]} 51. a7+ {[%emt 0:00:09]} Kxa7 {[%emt 0:00:07]} 52. c7 {[%emt 0:00:04]} Bxc7 {[%emt 0:00:08]} 53. Kxc7 {[%emt 0:00:03]} e4 {[%emt 0:00:05]} 54. fxe4 {[%emt 0:00:07]} fxe4 {[%emt 0:00:04]} 55. Bxe4 {[%emt 0:00:04]} 1-0